fUST/lending_fUST_20260113
["ID","MTS","AMOUNT","RATE_DAILY","PERIOD"]
[401482573,1768259442183,-2500.0,0.0001656,2]
[401482576,1768259442193,-3033.9237819,0.0001656,2]
[401482578,1768259442203,-3500.0,0.0001656,2]
[401482580,1768259442212,-228.70879455,0.00016961,7]
[401482581,1768259442221,-3500.0,0.00016986,2]
[401482584,1768259442231,-1000.0,0.00017,2]
[401482586,1768259442241,-1041.66666667,0.00017041,2]
[401482588,1768259442250,-1152.0,0.00017076,2]
[401482590,1768259442259,-1000.0,0.00017108,2]
[401482592,1768259442269,-2844.5358916,0.00017302,2]
[401482594,1768259442278,-5000.0,0.00017412,2]
[401482596,1768259442287,-1012.33286536,0.00017534,2]
[401482598,1768259442296,-472.52697397,0.00017537,2]
[401482599,1768259442305,-2844.5358916,0.00017728,2]
[401482600,1768259442319,-2844.5358916,0.00017875,2]
[401482602,1768259442328,-1000.0,0.00017892,2]
[401482603,1768259442337,-244.0,0.00017892,2]
[401482604,1768259442347,-2844.5358916,0.00018137,2]
[401482605,1768259442357,-2844.5358916,0.00018579,2]
[401482606,1768259442366,-1366.0,0.00018599,2]
[401482607,1768259442375,-628.0,0.00018599,2]
[401482608,1768259442384,-2147.0,0.00018599,2]
[401482609,1768259442394,-417.0,0.00018599,2]
[401482610,1768259442404,-417.0,0.00018599,2]
[401482611,1768259442413,-715.0,0.00018599,2]
[401482612,1768259442422,-197.827,0.00018599,2]
[401482613,1768259442432,-2844.5358916,0.00018641,2]
[401482614,1768259442443,-1613.0,0.00018751,2]
[401482615,1768259442452,-2398.4119403,0.00018818,2]
[401482616,1768259442462,-181.08010149,0.00018818,2]
[401482617,1768259442471,-187.78006525,0.00018818,2]
[401482618,1768259442481,-194.72792766,0.00018818,2]
[401482619,1768259442490,-201.93286099,0.00018818,2]
[401482620,1768259442499,-209.40437684,0.00018818,2]
[401482621,1768259442508,-496.47127164,0.00018818,2]
[401482622,1768259442517,-217.15233878,0.00018818,2]
[401482623,1768259442527,-225.18697532,0.00018818,2]
[401482624,1768259442536,-233.51889341,0.00018818,2]
[401482625,1768259442546,-242.15909246,0.00018818,2]
[401482626,1768259442555,-251.11897888,0.00018818,2]
[401482627,1768259442564,-260.4103811,0.00018818,2]
[401482629,1768259442573,-270.0455652,0.00018818,2]
[401482631,1768259442582,-280.03725112,0.00018818,2]
[401482633,1768259442592,-290.39862941,0.00018818,2]
[401482635,1768259442601,-301.1433787,0.00018818,2]
[401482637,1768259442610,-302.98632937,0.000189,2]
[401482639,1768259442619,-151.0,0.00019019,2]
[401482641,1768259442628,-2844.5358916,0.00019111,2]
[401482643,1768259442637,-352.88,0.00019178,2]
[401482645,1768259442646,-17700.54,0.000192,2]
[401482647,1768259442655,-728.0,0.0001931,2]
[401482649,1768259442664,-2487.15318209,0.00019366,2]
[401482651,1768259442673,-514.84070869,0.00019366,2]
[401482653,1768259442682,-2844.5358916,0.00019413,2]
[401482655,1768259442691,-728.0,0.00019444,2]
[401482657,1768259442701,-151.0,0.00019449,2]
[401482659,1768259442709,-728.0,0.0001952,2]
[401482661,1768259442719,-527.7573995,0.00019537,2]
[401482663,1768259442728,-1112.92148416,0.00019551,2]
[401482665,1768259442738,-2844.53589163,0.00019609,2]
[401482667,1768259442747,-728.0,0.0001963,2]
[401482668,1768259442756,-728.0,0.0001963,2]
[401482670,1768259442765,-1000.0,0.00019681,2]
[401482672,1768259442774,-492.0,0.00019681,2]
[401482674,1768259442783,-728.0,0.00019764,2]
[401482676,1768259442792,-11190.1211778,0.00019784,2]
[401482679,1768259442802,-180.0234839,0.00019876,2]
[401482681,1768259442811,-43234.8875343,0.00019876,2]
[401482682,1768259442820,-1162.9581496,0.00019876,2]
[401482685,1768259442830,-173.7117888,0.00019876,2]
[401482686,1768259442839,-3323.4115316,0.00019876,2]
[401482688,1768259442848,-151.0,0.00019879,2]
[401482690,1768259442857,-13357.57180481,0.000199,2]
[401482692,1768259442866,-160.0,0.00019909,2]
[401482694,1768259442875,-2579.17784983,0.00019914,2]
[401482697,1768259442884,-533.88981491,0.00019914,2]
[401482698,1768259442893,-2863.90180362,0.0001995,2]
[401482700,1768259442902,-556.80032482,0.0001995,2]
[401482703,1768259442911,-2227.20129927,0.0001995,2]
[401482704,1768259442920,-5006.19172044,0.0001995,2]
[401482707,1768259442929,-511.41371224,0.0001995,2]
[401482709,1768259442939,-2045.65484897,0.0001995,2]
[401482710,1768259442949,-4598.12068678,0.0001995,2]
[401482713,1768259442958,-932678.75485084,0.0001995,2]
[401483003,1768259445701,-500.0,0.00012667,2]
[401483005,1768259445710,-500.0,0.00012667,2]
[401483007,1768259445719,-500.0,0.00012667,2]
[401483442,1768259753621,75.32977433,0.00022065,30]
[401483527,1768260631866,-187.48544114,0.0001,2]
[401483528,1768260631876,-560.0,0.0001,2]
[401483529,1768260631885,-1200.0,0.0001161,2]
[401483530,1768260631894,-6760.2409063,0.00011611,2]
[401483531,1768260631904,-398.73672766,0.0001229,2]
[401483532,1768260631914,-166.66666668,0.0001239,2]
[401483534,1768260631923,-219.755,0.00012414,2]
[401483536,1768260631933,-300.69898344,0.00012489,2]
[401483538,1768260631941,-300.0,0.00012566,2]
[401483540,1768260631950,-38374.64149905,0.00012567,2]
[401483542,1768260631962,-63780.09028923,0.00012567,2]
[401484129,1768260637863,-459.3102377,0.00012566,2]
[401484130,1768260637873,-500.0,0.00012566,2]
[401484133,1768260637883,-500.0,0.00012566,2]
[401484135,1768260637892,-500.0,0.00012566,2]
[401484137,1768260637901,-500.0,0.00012566,2]
[401484139,1768260637911,-241.66562874,0.00012566,2]
[401484141,1768260637928,-500.0,0.00012566,2]
[401484143,1768260637946,-500.0,0.00012566,2]
[401484145,1768260637955,-500.0,0.00012566,2]
[401484146,1768260637964,-500.0,0.00012566,2]
[401484148,1768260637973,-500.0,0.00012566,2]
[401484150,1768260637983,-500.0,0.00012566,2]
[401484152,1768260637992,-500.0,0.00012566,2]
[401484155,1768260638002,-500.0,0.00012566,2]
[401484157,1768260638011,-500.0,0.00012566,2]
[401484158,1768260638021,-500.0,0.00012566,2]
[401484161,1768260638030,-500.0,0.00012566,2]
[401484162,1768260638039,-897845.26821172,0.00012567,2]
[401484165,1768260638049,-214.32,0.00012666,2]
[401484167,1768260638059,-540.12702532,0.00012666,2]
[401484169,1768260638069,-341.59355798,0.00012666,2]
[401484171,1768260638079,-500.0,0.00012666,2]
[401484173,1768260638088,-500.0,0.00012666,2]
[401484175,1768260638097,-357.04287724,0.00012666,2]
[401484176,1768260638107,-151.0,0.000127,2]
[401484178,1768260638117,-151.0,0.000127,2]
[401484180,1768260638126,-151.0,0.000127,2]
[401484182,1768260638136,-151.0,0.000127,2]
[401484184,1768260638145,-151.0,0.000127,2]
[401484186,1768260638154,-151.0,0.000127,2]
[401484188,1768260638163,-151.0,0.000127,2]
[401484190,1768260638172,-151.0,0.000127,2]
[401484192,1768260638181,-151.0,0.000127,2]
[401484194,1768260638190,-151.0,0.000127,2]
[401484196,1768260638199,-151.0,0.000127,2]
[401484198,1768260638209,-151.0,0.000127,2]
[401484200,1768260638218,-151.0,0.000127,2]
[401484215,1768260638227,-151.0,0.000127,2]
[401484217,1768260638347,-151.0,0.000127,2]
[401484219,1768260638357,-151.0,0.000127,2]
[401484221,1768260638367,-151.0,0.000127,2]
[401484223,1768260638376,-1563.0,0.00012771,2]
[401484225,1768260638385,-6095.52266178,0.000129,2]
[401484227,1768260638394,-300.0,0.0001292,2]
[401484229,1768260638403,-300.0,0.0001292,2]
[401484231,1768260638413,-300.0,0.0001292,2]
[401484233,1768260638423,-300.0,0.0001292,2]
[401484235,1768260638432,-300.0,0.0001292,2]
[401484237,1768260638441,-300.0,0.0001292,2]
[401484239,1768260638450,-300.0,0.0001292,2]
[401484241,1768260638459,-300.0,0.0001292,2]
[401484243,1768260638469,-300.0,0.0001292,2]
[401484245,1768260638478,-300.0,0.0001292,2]
[401484247,1768260638487,-300.0,0.0001292,2]
[401484249,1768260638497,-300.0,0.0001292,2]
[401484251,1768260638507,-300.0,0.0001292,2]
[401484253,1768260638516,-300.0,0.0001292,2]
[401484255,1768260638526,-300.0,0.0001292,2]
[401484257,1768260638535,-533.59953373,0.0001292,2]
[401484259,1768260638544,-214.32301538,0.0001294,2]
[401484261,1768260638553,-7143.91308147,0.00013,2]
[401484263,1768260638562,-600.0,0.00013177,2]
[401484265,1768260638571,-2582.71756179,0.00013189,2]
[401484267,1768260638581,-500.0,0.00013273,2]
[401484269,1768260638590,-500.0,0.00013273,2]
[401484271,1768260638599,-500.0,0.00013273,2]
[401484273,1768260638607,-500.0,0.00013273,2]
[401484275,1768260638618,-500.0,0.00013273,2]
[401484277,1768260638627,-500.0,0.00013273,2]
[401484279,1768260638636,-500.0,0.00013273,2]
[401484280,1768260638645,-500.0,0.00013273,2]
[401484282,1768260638654,-500.0,0.00013273,2]
[401484285,1768260638663,-500.0,0.00013273,2]
[401484287,1768260638673,-500.0,0.00013273,2]
[401484289,1768260638687,-500.0,0.00013273,2]
[401484291,1768260638695,-500.0,0.00013273,2]
[401484293,1768260638705,-500.0,0.00013273,2]
[401484294,1768260638714,-500.0,0.00013273,2]
[401484296,1768260638724,-500.0,0.00013273,2]
[401484298,1768260638733,-587.83194945,0.00013273,2]
[401484300,1768260638742,-500.0,0.00013273,2]
[401484302,1768260638751,-500.0,0.00013273,2]
[401484304,1768260638760,-500.0,0.00013273,2]
[401484306,1768260638769,-500.0,0.00013273,2]
[401484308,1768260638778,-500.0,0.00013273,2]
[401484310,1768260638788,-500.0,0.00013273,2]
[401484312,1768260638797,-500.0,0.00013273,2]
[401484314,1768260638806,-500.0,0.00013273,2]
[401484316,1768260638815,-500.0,0.00013273,2]
[401484318,1768260638824,-500.0,0.00013273,2]
[401484320,1768260638837,-500.0,0.00013273,2]
[401484322,1768260638846,-500.0,0.00013273,2]
[401484324,1768260638855,-500.0,0.00013273,2]
[401484326,1768260638865,-500.0,0.00013273,2]
[401484328,1768260638874,-500.0,0.00013273,2]
[401484330,1768260638883,-500.0,0.00013273,2]
[401484332,1768260638893,-500.0,0.00013273,2]
[401484334,1768260638902,-500.0,0.00013273,2]
[401484336,1768260638911,-500.0,0.00013273,2]
[401484338,1768260638921,-500.0,0.00013273,2]
[401484340,1768260638930,-400.46467622,0.00013273,2]
[401484342,1768260638939,-500.0,0.00013273,2]
[401484344,1768260638949,-500.0,0.00013273,2]
[401484346,1768260638958,-500.0,0.00013273,2]
[401484348,1768260638967,-500.0,0.00013273,2]
[401484350,1768260638976,-500.0,0.00013273,2]
[401484352,1768260638985,-500.0,0.00013273,2]
[401484354,1768260638994,-500.0,0.00013273,2]
[401484356,1768260639003,-500.0,0.00013273,2]
[401484358,1768260639012,-500.0,0.00013698,2]
[401484360,1768260639021,-500.0,0.00013698,2]
[401484362,1768260639031,-500.0,0.00013698,2]
[401484364,1768260639040,-500.0,0.00013698,2]
[401484366,1768260639049,-500.0,0.00013698,2]
[401484368,1768260639058,-500.0,0.00013698,2]
[401484370,1768260639067,-500.0,0.00013698,2]
[401484372,1768260639076,-500.0,0.00013698,2]
[401484374,1768260639085,-500.0,0.00013698,2]
[401484376,1768260639095,-500.0,0.00013698,2]
[401484378,1768260639104,-500.0,0.00013698,2]
[401484380,1768260639114,-500.0,0.00013698,2]
[401484382,1768260639123,-500.0,0.00013698,2]
[401484384,1768260639132,-500.0,0.00013698,2]
[401484386,1768260639141,-500.0,0.00013698,2]
[401484388,1768260639150,-500.0,0.00013698,2]
[401484390,1768260639160,-329.28962388,0.00013698,2]
[401484392,1768260639169,-58515.3478046,0.00013699,2]
[401484394,1768260639178,-500.0,0.00013699,2]
[401484396,1768260639188,-500.0,0.00013699,2]
[401484398,1768260639197,-500.0,0.00013699,2]
[401484400,1768260639207,-500.0,0.00013699,2]
[401484402,1768260639216,-500.0,0.00013699,2]
[401484404,1768260639226,-500.0,0.00013699,2]
[401484406,1768260639235,-500.0,0.00013699,2]
[401484408,1768260639245,-610.75742393,0.00013699,2]
[401484410,1768260639254,-500.0,0.00013699,2]
[401484412,1768260639263,-500.0,0.00013699,2]
[401484414,1768260639272,-500.0,0.00013699,2]
[401484416,1768260639281,-612.0897626,0.00013699,2]
[401484418,1768260639290,-500.0,0.00013699,2]
[401484420,1768260639299,-500.0,0.00013699,2]
[401484422,1768260639309,-500.0,0.00013699,2]
[401484424,1768260639319,-500.0,0.00013699,2]
[401484426,1768260639329,-500.0,0.00013699,2]
[401484428,1768260639338,-500.0,0.00013699,2]
[401484430,1768260639348,-500.0,0.00013699,2]
[401484432,1768260639357,-500.0,0.00013699,2]
[401484434,1768260639367,-500.0,0.00013699,2]
[401484436,1768260639377,-500.0,0.00013699,2]
[401484438,1768260639386,-502.65928848,0.00013699,2]
[401484440,1768260639395,-227.11320444,0.00013699,2]
[401484442,1768260639405,-500.0,0.00013699,2]
[401484444,1768260639415,-500.0,0.00013699,2]
[401484446,1768260639425,-500.0,0.00013699,2]
[401484448,1768260639435,-500.0,0.00013699,2]
[401484450,1768260639444,-500.0,0.00013699,2]
[401484452,1768260639454,-500.0,0.00013699,2]
[401484454,1768260639463,-500.0,0.00013699,2]
[401484456,1768260639473,-461.16799506,0.00013699,2]
[401484458,1768260639482,-500.0,0.00013699,2]
[401484460,1768260639492,-500.0,0.00013699,2]
[401484462,1768260639501,-500.0,0.00013699,2]
[401484464,1768260639510,-500.0,0.00013699,2]
[401484466,1768260639520,-500.0,0.00013699,2]
[401484468,1768260639530,-500.0,0.00013699,2]
[401484470,1768260639540,-500.0,0.00013699,2]
[401484472,1768260639550,-252.89893897,0.00013699,2]
[401484474,1768260639560,-500.0,0.00013699,2]
[401484476,1768260639569,-500.0,0.00013699,2]
[401484478,1768260639578,-298.79354709,0.00013699,2]
[401484480,1768260639588,-500.0,0.00013699,2]
[401484482,1768260639597,-500.0,0.00013699,2]
[401484484,1768260639607,-500.0,0.00013699,2]
[401484486,1768260639617,-500.0,0.00013699,2]
[401484487,1768260639626,-500.0,0.00013699,2]
[401484488,1768260639635,-500.0,0.00013699,2]
[401484489,1768260639644,-500.0,0.00013699,2]
[401484490,1768260639654,-500.0,0.00013699,2]
[401484491,1768260639663,-500.0,0.00013699,2]
[401484492,1768260639673,-441.99834149,0.00013699,2]
[401484493,1768260639684,-500.28128039,0.00013699,2]
[401484494,1768260639693,-500.0,0.00013699,2]
[401484495,1768260639702,-500.0,0.00013699,2]
[401484496,1768260639711,-500.0,0.00013699,2]
[401484497,1768260639721,-500.0,0.00013699,2]
[401484498,1768260639730,-159.64533136,0.00013699,2]
[401484499,1768260639739,-500.0,0.00013699,2]
[401484500,1768260639750,-500.0,0.00013699,2]
[401484501,1768260639759,-500.0,0.00013699,2]
[401484502,1768260639768,-500.0,0.00013699,2]
[401484503,1768260639778,-500.0,0.00013699,2]
[401484504,1768260639787,-313.20652716,0.00013699,2]
[401484505,1768260639796,-500.0,0.00013699,2]
[401484506,1768260639806,-501.55614282,0.00013699,2]
[401484507,1768260639815,-500.0,0.00013699,2]
[401484508,1768260639824,-500.0,0.00013699,2]
[401484509,1768260639835,-366.95119537,0.00013699,2]
[401484510,1768260639843,-500.0,0.00013699,2]
[401484511,1768260639853,-500.0,0.00013699,2]
[401484513,1768260639862,-296.07308979,0.00013699,2]
[401484515,1768260639870,-500.0,0.00013699,2]
[401484517,1768260639880,-500.0,0.00013699,2]
[401484519,1768260639889,-500.0,0.00013699,2]
[401484521,1768260639898,-420.0,0.00013787,2]
[401484523,1768260639908,-1000.0,0.00013821,2]
[401484525,1768260639919,-1000.0,0.00013821,2]
[401484527,1768260639929,-798.59280651,0.00013821,2]
[401484529,1768260639938,-500.0,0.00013821,2]
[401484531,1768260639946,-1000.0,0.00013821,2]
[401484533,1768260639956,-1000.0,0.00013821,2]
[401484535,1768260639965,-1000.0,0.00013821,2]
[401484537,1768260639975,-1000.0,0.00013821,2]
[401484539,1768260639984,-958.38483251,0.00013821,2]
[401484541,1768260639993,-1000.0,0.00013821,2]
[401484543,1768260640001,-1113.91769968,0.00013821,2]
[401484545,1768260640010,-1000.0,0.00013821,2]
[401484547,1768260640019,-1000.0,0.00013821,2]
[401484549,1768260640029,-1000.0,0.00013821,2]
[401484551,1768260640039,-1000.0,0.00013821,2]
[401484553,1768260640048,-290.33203274,0.00013821,2]
[401484555,1768260640058,-1000.0,0.00013821,2]
[401484557,1768260640066,-1000.0,0.00013821,2]
[401484559,1768260640075,-1000.0,0.00013821,2]
[401484561,1768260640084,-1000.0,0.00013821,2]
[401484563,1768260640094,-1000.0,0.00013821,2]
[401484565,1768260640103,-1000.0,0.00013821,2]
[401484567,1768260640112,-1000.0,0.00013821,2]
[401484569,1768260640121,-1000.0,0.00013821,2]
[401484571,1768260640131,-1000.0,0.00013821,2]
[401484573,1768260640140,-1000.0,0.00013821,2]
[401484575,1768260640149,-1000.0,0.00013821,2]
[401484577,1768260640158,-1000.0,0.00013821,2]
[401484579,1768260640167,-1000.0,0.00013821,2]
[401484581,1768260640176,-1000.0,0.00013821,2]
[401484583,1768260640185,-1000.0,0.00013821,2]
[401484585,1768260640194,-1000.0,0.00013821,2]
[401484587,1768260640203,-1000.0,0.00013821,2]
[401484589,1768260640213,-332.40668052,0.00013821,2]
[401484591,1768260640222,-1000.0,0.00013821,2]
[401484593,1768260640231,-1000.0,0.00013821,2]
[401484595,1768260640241,-1000.0,0.00013821,2]
[401484597,1768260640250,-680.33880903,0.00013821,2]
[401484599,1768260640259,-1000.0,0.00013821,2]
[401484601,1768260640268,-294.20360383,0.00013973,2]
[401484603,1768260640277,-1000.512985,0.00014247,2]
[401484604,1768260640286,-500.0,0.00014247,2]
[401484606,1768260640295,-875.76793412,0.00014247,2]
[401484608,1768260640304,-1000.0,0.00014247,2]
[401484611,1768260640313,-1000.0,0.00014247,2]
[401484613,1768260640323,-1000.0,0.00014247,2]
[401484614,1768260640332,-581.34216933,0.00014247,2]
[401484616,1768260640340,-1000.0,0.00014247,2]
[401484618,1768260640349,-1000.0,0.00014247,2]
[401484620,1768260640358,-500.93038909,0.00014247,2]
[401484622,1768260640367,-1002.38932755,0.00014247,2]
[401484624,1768260640376,-353.02410941,0.00014247,2]
[401484626,1768260640385,-1017.77857831,0.00014247,2]
[401484628,1768260640394,-1000.0,0.00014247,2]
[401484630,1768260640403,-1000.0,0.00014247,2]
[401484632,1768260640412,-1000.0,0.00014247,2]
[401484634,1768260640421,-1000.0,0.00014247,2]
[401484636,1768260640430,-250.0,0.00014247,2]
[401484638,1768260640439,-1002.56553603,0.00014247,2]
[401484640,1768260640449,-501.52224721,0.00014247,2]
[401484642,1768260640458,-1000.0,0.00014247,2]
[401484644,1768260640467,-1000.0,0.00014247,2]
[401484646,1768260640477,-1000.0,0.00014247,2]
[401484648,1768260640486,-1000.0,0.00014247,2]
[401484650,1768260640495,-1000.0,0.00014247,2]
[401484652,1768260640505,-276.29994154,0.00014247,2]
[401484654,1768260640514,-1000.0,0.00014247,2]
[401484656,1768260640523,-1014.57441802,0.00014247,2]
[401484658,1768260640532,-1000.0,0.00014247,2]
[401484670,1768260640633,-1000.0,0.00014247,2]
[401484672,1768260640643,-1000.0,0.00014247,2]
[401484674,1768260640652,-1000.0,0.00014247,2]
[401484677,1768260640662,-1000.0,0.00014247,2]
[401484678,1768260640672,-999.83703447,0.00014247,2]
[401484681,1768260640685,-1000.0,0.00014247,2]
[401484682,1768260640694,-1029.61129365,0.00014247,2]
[401484684,1768260640703,-1000.0,0.00014247,2]
[401484686,1768260640713,-1000.0,0.00014247,2]
[401484689,1768260640724,-1000.0,0.00014247,2]
[401484691,1768260640733,-1000.0,0.00014247,2]
[401484693,1768260640743,-1000.0,0.00014247,2]
[401484694,1768260640753,-1000.0,0.00014247,2]
[401484696,1768260640763,-1138.41119879,0.00014247,2]
[401484698,1768260640771,-1000.0,0.00014247,2]
[401484700,1768260640781,-1000.0,0.00014247,2]
[401484702,1768260640790,-1000.0,0.00014247,2]
[401484704,1768260640800,-1000.0,0.00014247,2]
[401484706,1768260640809,-1000.0,0.00014247,2]
[401484708,1768260640818,-1000.0,0.00014247,2]
[401484711,1768260640828,-1000.0,0.00014247,2]
[401484712,1768260640837,-1000.0,0.00014247,2]
[401484714,1768260640849,-1000.0,0.00014247,2]
[401484716,1768260640858,-1000.0,0.00014247,2]
[401484718,1768260640867,-1000.0,0.00014247,2]
[401484720,1768260640876,-346.05518507,0.00014247,2]
[401484722,1768260640885,-646.68328603,0.00014247,2]
[401484724,1768260640894,-1000.0,0.00014247,2]
[401484726,1768260640904,-1000.0,0.00014247,2]
[401484728,1768260640913,-1006.00253074,0.00014247,2]
[401484730,1768260640923,-1121.35319303,0.00014368,2]
[401484732,1768260640933,-504.59320272,0.00014368,2]
[401484734,1768260640942,-1603.18109463,0.00014368,2]
[401484736,1768260640952,-1500.0,0.00014368,2]
[401484738,1768260640961,-1500.0,0.00014368,2]
[401484740,1768260640970,-1500.0,0.00014368,2]
[401484742,1768260640979,-763.96834089,0.00014368,2]
[401484744,1768260640988,-423.32811707,0.00014368,2]
[401484746,1768260640998,-1500.0,0.00014368,2]
[401484748,1768260641007,-500.0,0.00014368,2]
[401484750,1768260641016,-1500.0,0.00014368,2]
[401484752,1768260641025,-1500.0,0.00014368,2]
[401484754,1768260641034,-1500.0,0.00014368,2]
[401484756,1768260641043,-500.80134157,0.00014368,2]
[401484758,1768260641054,-1000.0,0.00014368,2]
[401484760,1768260641063,-1500.0,0.00014368,2]
[401484762,1768260641072,-1500.0,0.00014368,2]
[401484764,1768260641082,-401.64301006,0.00014368,2]
[401484766,1768260641091,-1485.3091038,0.00014368,2]
[401484768,1768260641100,-1177.20505665,0.00014368,2]
[401484770,1768260641109,-1500.0,0.00014368,2]
[401484772,1768260641119,-1500.0,0.00014368,2]
[401484774,1768260641128,-1500.0,0.00014368,2]
[401484776,1768260641137,-1500.0,0.00014368,2]
[401484778,1768260641147,-1500.0,0.00014368,2]
[401484780,1768260641156,-1500.0,0.00014368,2]
[401484782,1768260641165,-1500.0,0.00014368,2]
[401484784,1768260641174,-1500.0,0.00014368,2]
[401484786,1768260641183,-1500.0,0.00014368,2]
[401484788,1768260641193,-1000.0,0.00014368,2]
[401484790,1768260641203,-354.82480046,0.00014489,2]
[401484791,1768260641212,-720.0,0.00014495,2]
[401484793,1768260641222,-5000.0,0.0001451,2]
[401484795,1768260641231,-500.0,0.00014563,2]
[401484797,1768260641240,-500.0,0.00014563,2]
[401484799,1768260641249,-500.0,0.00014563,2]
[401484801,1768260641259,-500.0,0.00014563,2]
[401484803,1768260641268,-500.0,0.00014563,2]
[401484805,1768260641278,-500.0,0.00014563,2]
[401484807,1768260641287,-500.0,0.00014563,2]
[401484809,1768260641296,-500.0,0.00014563,2]
[401484811,1768260641306,-500.0,0.00014563,2]
[401484813,1768260641315,-500.0,0.00014563,2]
[401484815,1768260641325,-500.0,0.00014563,2]
[401484817,1768260641334,-500.0,0.00014563,2]
[401484820,1768260641344,-364.86992356,0.00014563,2]
[401484821,1768260641354,-229.58610265,0.00014582,2]
[401484824,1768260641364,-100000.0,0.0001459,2]
[401484826,1768260641373,-1500.0,0.00014795,2]
[401484827,1768260641382,-1500.0,0.00014795,2]
[401484829,1768260641391,-1500.0,0.00014795,2]
[401484831,1768260641401,-500.0,0.00014795,2]
[401484833,1768260641410,-1500.0,0.00014795,2]
[401484835,1768260641419,-1500.0,0.00014795,2]
[401484837,1768260641428,-675.05887209,0.00014795,2]
[401484839,1768260641438,-1500.0,0.00014795,2]
[401484841,1768260641447,-1000.0,0.00014795,2]
[401484843,1768260641456,-1121.58832465,0.00014795,2]
[401484845,1768260641466,-1500.0,0.00014795,2]
[401484847,1768260641475,-1500.0,0.00014795,2]
[401484849,1768260641484,-158.4999436,0.00014795,2]
[401484851,1768260641494,-575.12204215,0.00014795,2]
[401484853,1768260641503,-1000.0,0.00014795,2]
[401484855,1768260641512,-1500.0,0.00014795,2]
[401484857,1768260641521,-500.0,0.00014795,2]
[401484859,1768260641531,-1500.0,0.00014795,2]
[401484861,1768260641540,-1500.0,0.00014795,2]
[401484863,1768260641550,-1500.0,0.00014795,2]
[401484865,1768260641559,-964.41428729,0.00014795,2]
[401484867,1768260641569,-710.84440634,0.00014795,2]
[401484869,1768260641578,-1500.0,0.00014795,2]
[401484871,1768260641587,-1500.0,0.00014795,2]
[401484873,1768260641596,-1500.0,0.00014795,2]
[401484875,1768260641605,-1500.0,0.00014795,2]
[401484877,1768260641614,-1500.0,0.00014795,2]
[401484879,1768260641624,-1500.0,0.00014795,2]
[401484881,1768260641634,-1509.97698878,0.00014795,2]
[401484883,1768260641643,-1500.0,0.00014795,2]
[401484885,1768260641653,-500.0,0.00014795,2]
[401484887,1768260641662,-1500.0,0.00014795,2]
[401484889,1768260641672,-1500.0,0.00014795,2]
[401484891,1768260641686,-2000.0,0.00014916,2]
[401484893,1768260641695,-500.0,0.00014916,2]
[401484895,1768260641704,-155.72124395,0.00014916,2]
[401484897,1768260641714,-500.0,0.00014916,2]
[401484899,1768260641725,-2000.0,0.00014916,2]
[401484901,1768260641734,-2000.0,0.00014916,2]
[401484903,1768260641745,-2000.0,0.00014916,2]
[401484906,1768260641754,-2000.0,0.00014916,2]
[401484908,1768260641764,-1466.62413338,0.00014916,2]
[401484910,1768260641774,-2000.0,0.00014916,2]
[401484911,1768260641783,-500.0,0.00014916,2]
[401484913,1768260641792,-2000.0,0.00014916,2]
[401484915,1768260641802,-2000.0,0.00014916,2]
[401484917,1768260641811,-2000.0,0.00014916,2]
[401484919,1768260641821,-1113.36442406,0.00014916,2]
[401484921,1768260641830,-2000.0,0.00014916,2]
[401484923,1768260641840,-2000.0,0.00014916,2]